Workbook

Sheet Лист1
A2: Расчетная тепловая нагрузка | J2: 100 | K2: кВт
A3: Температура в подающем трубопроводе | J3: 80 | K3: °С
A4: Температура вобратном трубопроводе | J4: 60 | K4: °С
A5: Плотность теплоносителя | J5: =1/0.0010228 -> 977.7082519 | K5: кг/м3
A6: Теплоемкость теплоносителя | J6: =293/70 -> 4.185714286 | K6: кДЖ/(кг·°С)
A7: Расход теплоносителя | J7: =J2/J6/(J3-J4)/J5*1000 -> 1.221774744 | K7: л/с
A8: Расход теплоносителя | J8: =J7*3.6 -> 4.398389078 | K8: м3/час
A9: Длина трубопроводов отопления | J9: 100 | K9: м
A10: Район строительства | J10: Белгород
A11: Продолжительность отопительного периода | J11: 191 | K11: сут.
A12: Стоимость электроэнергии | J12: 3.33 | K12: руб./кВт·час
B14: Труба Ekoplastik S5 (PN20) | H14: Скорость | I14: Удельные потери на трение | J14: Потери на трение по длине | K14: Коэффициент потерь в местных сопротивлениях | L14: Общие потери | N14: Насос | S14: Стоимость системы | T14: Затраты на электроэнергию | U14: Стоимость системы ПЛЮС 5 лет эксплуатации
B15: dн | C15: х | D15: s | E15: dвн | F15: стоимость | G15: цена*1.3 | H15: v | I15: R | N15: марка | O15: расход | P15: подача | Q15: Р1 | R15: цена
B16: мм | D16: мм | E16: мм | F16: руб./м | G16: руб. | H16: м/с | I16: кПа/м | J16: кПа | L16: кПа | M16: м вод.ст. | O16: м3/час | P16: м | Q16: кВт | R16: руб. | S16: руб. | T16: руб./год | U16: руб.
B17: 32 | C17: х | D17: 5.4 | E17: =B17-D17*2 -> 21.2 | F17: 177.12 | G17: =$J$9*F17*1.3 -> 23025.6 | H17: =($J$7/1000)/((PI()*(E17/1000)^2)/4) -> 3.461222675 | I17: 5.121 | J17: =$J$9*I17 -> 512.1 | K17: 1 | L17: =J17*(1+K17) -> 1024.2 | M17: =L17/9.81 -> 104.4036697 | N17: CME10-5 A-R-G-V-AQQV | O17: 4.4 | P17: 105 | Q17: 3.9 | R17: 108275 | S17: =G17+R17 -> 131300.6 | T17: =$J$11*24*Q17*$J$12 -> 59532.408 | U17: =S17+T17*5 -> 428962.64
B18: 40 | C18: х | D18: 6.7 | E18: =B18-D18*2 -> 26.6 | F18: 253.92 | G18: =$J$9*F18*1.3 -> 33009.6 | H18: =($J$7/1000)/((PI()*(E18/1000)^2)/4) -> 2.198558311 | I18: 1.645 | J18: =$J$9*I18 -> 164.5 | K18: 1 | L18: =J18*(1+K18) -> 329 | M18: =L18/9.81 -> 33.53720693 | N18: CME3-5 A-R-A-V-AQQV | O18: 4.4 | P18: 33.5 | Q18: 0.92 | R18: 47320 | S18: =G18+R18 -> 80329.6 | T18: =$J$11*24*Q18*$J$12 -> 14043.5424 | U18: =S18+T18*5 -> 150547.312
B19: 50 | C19: х | D19: 8.3 | E19: 33.4 | F19: 384.48 | G19: 49982.4 | H19: 1.39446728 | I19: 0.549 | J19: 54.9 | K19: 1 | L19: 109.8 | M19: 11.19266055 | N19: CME3-2 A-R-A-E-AQQE | O19: 4.4 | P19: 11.2 | Q19: 0.35 | R19: 39100 | S19: 89082.4 | T19: 5342.652 | U19: 115795.66
B20: 63 | C20: х | D20: 10.5 | E20: 42 | F20: 574.08 | G20: 74630.4 | H20: 0.8818661672 | I20: 0.173 | J20: 17.3 | K20: 1 | L20: 34.6 | M20: 3.527013252 | N20: MAGNA 25-60 | O20: 4.4 | P20: 3.5 | Q20: 0.081 | R20: 15880 | S20: 90510.4 | T20: 1236.44232 | U20: 96692.6116
B21: 75 | C21: х | D21: 12.5 | E21: 50 | F21: 1020.96 | G21: 132724.8 | H21: 0.6222447675 | I21: 0.074 | J21: 7.4 | K21: 1 | L21: 14.8 | M21: 1.508664628 | N21: MAGNA 25-60 | O21: 4.4 | P21: 1.5 | Q21: 0.041 | R21: 15880 | S21: 148604.8 | T21: 625.85352 | U21: 151734.0676
B22: 90 | C22: х | D22: 15 | E22: 60 | F22: 1369.92 | G22: 178089.6 | H22: 0.4321144219 | I22: 0.031 | J22: 3.1 | K22: 1 | L22: 6.2 | M22: 0.6320081549 | N22: MAGNA 25-40 | O22: 4.4 | P22: 0.6 | Q22: 0.037 | R22: 12540 | S22: 190629.6 | T22: 564.79464 | U22: 193453.5732
B23: 110 | C23: х | D23: 18.3 | E23: 73.4 | F23: 2187.36 | G23: 284356.8 | H23: 0.288741456 | I23: 0.012 | J23: 1.2 | K23: 1 | L23: 2.4 | M23: 0.244648318 | N23: MAGNA 25-40 | O23: 4.4 | P23: 0.2 | Q23: 0.037 | R23: 12540 | S23: 296896.8 | T23: 564.79464 | U23: 299720.7732
